Cogmind - Beta 16 @@@ ROGUE MODE // 2025.11.02 @ 16:07:15 Player: Not_Jesus8 Result: Self-destructed Performance ------------- Evolutions (1) 500 Regions Visited (5) 1000 Robots Destroyed (1) 5 Value Destroyed (45) 45 Prototype IDs (2) 40 Alien Tech Used (0) 0 Bonus (500) 500 TOTAL SCORE: 2090 Bonus ------- Pacifist 200 Registered with UFD 300 Cogmind --------- Core Integrity 145/400 Matter 300/300 Energy 100/100 System Corruption 0% Temperature Cool (2) Movement Flying (35) Location -9/Scraptown Parts ------- > --- POWER (1) -------- (None) > --- PROPULSION (2) --- VTOL Module > --- UTILITY (4) ------ Light Armor Plating > --- WEAPON (2) ------- (None) > --- INVENTORY (5) ---- CPS Tube (2) CPS Tube (2) Heavy Hammer Powered Hammer Peak State ------------ > --- POWER ------------ (None) > --- PROPULSION ------- (None) > --- UTILITY ---------- (None) > --- WEAPON ----------- Particle Cannon Particle Cannon > --- INVENTORY -------- (None) [Rating: 4] Favorites ----------- Power None Propulsion VTOL Module Flight Unit VTOL Module Utility Light Armor Plating Protection Light Armor Plating Weapon Particle Cannon Energy Cannon Particle Cannon Build | -11 -10 -9 -9 -9 -9 ------- Run | Yrd Mat Mat Sto Rec Scr Slots Evolved 2 | . . 2 . . . Power . | . . . . . . Propulsion . | . . . . . . Utility 2 | . . 2 . . . Weapon . | . . . . . . Parts Attached 4 | . . . 2 1 1 Power . | . . . . . . Engine . | . . . . . . Core . | . . . . . . Reactor . | . . . . . . Propulsion 1 | . . . . . 1 Treads . | . . . . . . Leg . | . . . . . . Wheel . | . . . . . . Hover . | . . . . . . Flight 1 | . . . . . 1 Utility 1 | . . . . 1 . Device . | . . . . . . Storage . | . . . . . . Processor . | . . . . . . Hackware . | . . . . . . Protection 1 | . . . . 1 . Artifact . | . . . . . . Weapon 2 | . . . 2 . . Energy Gun . | . . . . . . Energy Cannon 2 | . . . 2 . . Ballistic Gun . | . . . . . . Ballistic Cannon . | . . . . . . Launcher . | . . . . . . Special Weapon . | . . . . . . Impact Weapon . | . . . . . . Slashing Weapon . | . . . . . . Piercing Weapon . | . . . . . . Special Melee Weapon . | . . . . . . Unidentified Prototypes . | . . . . . . Parts Lost . | . . . . . . Power . | . . . . . . Propulsion . | . . . . . . Utility . | . . . . . . Weapon . | . . . . . . Highest Loss Streak . | . . . . . . To Critical Strikes . | . . . . . . Average Backups 1 | . . . . 1 2 Power . | . . . . . . Propulsion . | . . . . . . Utility . | . . . . . . Weapon 1 | . . . . 1 1 Tool/Special . | . . . . . . Unused Backups 4 | . . . . . 4 Power . | . . . . . . Propulsion . | . . . . . . Utility . | . . . . . . Weapon 2 | . . . . . 2 Tool/Special 2 | . . . . . 2 Average Slot Usage (%) 10 | . . . 8 9 16 Flight 1 | . . . . . 5 Protection 8 | . . . . 9 11 Peak Build Rating 4 | . . . 4 1 4 Average Rating 1 | . . . 1 . 2 On Entrance . | . . . . . 1 Avg Prop Armor Cover (%) . | . . . . . . Naked Turns 194 | . 31 69 41 53 . Heaviest Build 8 | . . . 8 3 3 Greatest Support 4 | 3 3 3 3 3 4 Greatest Overweight (x) 2 | . . . 2 . . Average Overweight (x) . | . . . . . . Largest Inventory Capacity 5 | 5 5 5 5 5 5 Average Capacity 5 | 5 5 5 5 5 5 Most Carried 4 | . . . 1 2 4 Average Carried 1 | . . . . 1 2 Final Capacity 5 | 5 5 5 5 5 5 Final Carried 4 | . . . 1 1 4 Class Distribution -------------------- 100% | Mutant Dominant Class ---------------- Mutant | -10/Materials Mutant | -9/Materials Mutant | -9/Storage Mutant | -9/Recycling Mutant | -9/Scraptown Resources | -11 -10 -9 -9 -9 -9 ----------- Run | Yrd Mat Mat Sto Rec Scr Matter Collected 192 | 127 . . . 45 20 Remotely . | . . . . . . Salvage Created 56 | . . . 56 . . Parts 2 | . . . 2 . . Haulers Intercepted . | . . . . . . Recyclers Shooed . | . . . . . . Parts Field Recycled . | . . . . . . Retrieved Matter . | . . . . . . Parts Self-Destructed . | . . . . . . Prevented . | . . . . . . Parts Restored . | . . . . . . Kills | -11 -10 -9 -9 -9 -9 ------- Run | Yrd Mat Mat Sto Rec Scr Combat Hostiles Destroyed 1 | . . . 1 . . Cannons 1 | . . . 1 . . Classes Destroyed 1 | . . . 1 . . Sentry 1 | . . . 1 . . Best Kill Streak 1 | . . . 1 . . Combat Bots Only 1 | . . . 1 . . Max Kills in Single Turn 1 | . . . 1 . . Gunslinging . | . . . . . . Exploded . | . . . . . . Melee . | . . . . . . Uniques/NPCs Destroyed . | . . . . . . Combat | -11 -10 -9 -9 -9 -9 -------- Run | Yrd Mat Mat Sto Rec Scr Hostile Shots Fired 38 | . . 21 17 . . Missed 14 | . . 9 5 . . Hits 24 | . . 12 12 . . Projectile 24 | . . 12 12 . . Critical Strikes 1 | . . . 1 . . Damage Taken 316 | . . 140 171 5 . Core 255 | . . 140 110 5 . Absorbed by Shields . | . . . . . . Core Remaining (%) 100 | 100 100 . . . . Volleys Fired 3 | . . . 3 . . Largest 2 | . . . 2 . . Hottest 136 | . . . 136 . . Shots Fired 6 | . . . 6 . . Gun . | . . . . . . Cannon 6 | . . . 6 . . Launcher . | . . . . . . Special . | . . . . . . Kinetic . | . . . . . . Thermal 6 | . . . 6 . . Explosive . | . . . . . . Electromagnetic . | . . . . . . Robot Hit Streak 5 | . . . 5 . . Robot Miss Streak . | . . . . . . Penetration Max . | . . . . . . Secondary Targets . | . . . . . . Shots Hit Robots 5 | . . . 5 . . Core Hits 1 | . . . 1 . . Critical Kills . | . . . . . . Critical Parts Destroyed . | . . . . . . Critical Strikes . | . . . . . . Melee Attacks . | . . . . . . Impact . | . . . . . . Slashing . | . . . . . . Piercing . | . . . . . . Sneak Attacks . | . . . . . . Combat Hostiles . | . . . . . . Follow-up Attacks . | . . . . . . Damage Inflicted 154 | . . 36 107 11 . Guns . | . . . . . . Cannons 103 | . . . 103 . . Explosions . | . . . . . . Melee . | . . . . . . Ramming 51 | . . 36 4 11 . Kinetic . | . . . . . . Thermal 103 | . . . 103 . . Explosive . | . . . . . . Electromagnetic . | . . . . . . Impact . | . . . . . . Slashing . | . . . . . . Piercing . | . . . . . . Highest Corruption . | . . . . . . Average Corruption . | . . . . . . Corruption Purged . | . . . . . . Corruption Blocked . | . . . . . . Overload Shots . | . . . . . . Overflow Damage . | . . . . . . Projectiles . | . . . . . . Explosions . | . . . . . . Melee . | . . . . . . Knockbacks . | . . . . . . Impact . | . . . . . . Kinetic . | . . . . . . Secondary . | . . . . . . Self-Inflicted Damage 22 | . . 15 2 5 . Shots . | . . . . . . Rammed 13 | . . 9 3 1 . Targets Rammed 13 | . . 9 3 1 . Kicked . | . . . . . . Crushed . | . . . . . . Highest Temperature 189 | . . . 189 . . Average Temperature 101 | . . . 101 . . Received Heat Transfer 123 | . . 24 99 . . Siege Activations . | . . . . . . Martial Activations . | . . . . . . Shielding Activations . | . . . . . . Robots Disrupted . | . . . . . . Combat Hostiles . | . . . . . . Robots Corrupted . | . . . . . . Combat Hostiles . | . . . . . . Parts Fried . | . . . . . . Impact Corruptions . | . . . . . . Robots Melted . | . . . . . . Combat Hostiles . | . . . . . . Parts Melted . | . . . . . . Heat Transferred 185 | . . . 185 . . Parts Sabotaged . | . . . . . . Parts Stolen . | . . . . . . Parts Stripped . | . . . . . . Power Chain Reactions . | . . . . . . Alert | -11 -10 -9 -9 -9 -9 ------- Run | Yrd Mat Mat Sto Rec Scr Maximum Alert Level . | . . . . . . Low Security (%) 100 | 100 100 100 100 100 . Level 1 . | . . . . . . Level 2 . | . . . . . . Level 3 . | . . . . . . Level 4 . | . . . . . . Level 5 . | . . . . . . High Security . | . . . . . . Max Security . | . . . . . . Peak Influence 102 | . . 55 48 102 . Initial 22 | . . . 22 14 . Average 20 | . . 17 32 20 . Influence Increases 249 | . . 75 46 128 . Destroy 0b10 Robot/C 20 | . . . 20 . . Destroy Leader 10 | . . . 10 . . Successful Hack 8 | . . . . 8 . Select Force Hacks 120 | . . . . 120 . Destroy Structure 1 | . . . 1 . . Partial Spotted 45 | . . 30 15 . . Lose Combat Pursuer 45 | . . 45 . . . Influence Decreases 249 | . . 20 63 166 . Entered New Map 57 | . . . 33 24 . Time Decay 192 | . . 20 30 142 . Squads Dispatched . | . . . . . . Investigation . | . . . . . . Extermination . | . . . . . . Reinforcement . | . . . . . . Assault . | . . . . . . Garrison . | . . . . . . Intercept . | . . . . . . Searches Triggered . | . . . . . . Construction Impeded . | . . . . . . Haulers Reinforced . | . . . . . . Active Scanning Responses . | . . . . . . Cargo Convoy Interrupts . | . . . . . . Stealth | -11 -10 -9 -9 -9 -9 --------- Run | Yrd Mat Mat Sto Rec Scr Distress Signals . | . . . . . . Communications Jammed . | . . . . . . Distress Signals . | . . . . . . Times Spotted 12 | . . 8 4 . . Peak Tracking Total 7 | . . 7 3 . . Tactical Retreats 1 | . . 1 . . . Traps | -11 -10 -9 -9 -9 -9 ------- Run | Yrd Mat Mat Sto Rec Scr Traps Triggered . | . . . . . . Indirectly . | . . . . . . Trap Hack Attempts . | . . . . . . Triggered . | . . . . . . Disarmed . | . . . . . . Reprogrammed . | . . . . . . Reused . | . . . . . . Traps Extracted . | . . . . . . Installed . | . . . . . . Triggered . | . . . . . . Machines | -11 -10 -9 -9 -9 -9 ---------- Run | Yrd Mat Mat Sto Rec Scr Machines Disabled . | . . . . . . Max in Single Turn . | . . . . . . Machines Repaired . | . . . . . . Machines Dismantled . | . . . . . . Machines Sabotaged . | . . . . . . Overloaded Fab Kills . | . . . . . . Hacking | -11 -10 -9 -9 -9 -9 --------- Run | Yrd Mat Mat Sto Rec Scr Machines Accessed 10 | . . 1 . 9 . Terminals 6 | . . 1 . 5 . Fabricators . | . . . . . . Repair Stations . | . . . . . . Recycling Units 4 | . . . . 4 . Scanalyzers . | . . . . . . Garrison Access . | . . . . . . Total Hacks 15 | . . 2 . 13 . Successful 9 | . . . . 9 . Failed 6 | . . 2 . 4 . Catastrophic . | . . . . . . Database Lockouts . | . . . . . . Manual 16 | . . 2 1 13 . Terminals 11 | . . 2 . 9 . Fabricators . | . . . . . . Repair Stations . | . . . . . . Recycling Units 4 | . . . . 4 . Scanalyzers . | . . . . . . Garrison Access . | . . . . . . Terminal Hacks . | . . . . . . Fabricator Hacks . | . . . . . . Repair Station Hacks . | . . . . . . Recycling Unit Hacks . | . . . . . . Scanalyzer . | . . . . . . Garrison Access Hacks . | . . . . . . Unauthorized Hacks 9 | . . . . 9 . Terminals 5 | . . . . 5 . Skim 5 | . . . . 5 . Fabricators . | . . . . . . Repair Stations . | . . . . . . Recycling Units 4 | . . . . 4 . Tunnel 4 | . . . . 4 . Scanalyzers . | . . . . . . Garrison Access . | . . . . . . Data Cores Recovered . | . . . . . . Used . | . . . . . . Hacking Detections 4 | . . 1 . 3 . Full Trace Events 1 | . . 1 . . . Feedback Events . | . . . . . . Feedback Blocked . | . . . . . . Robot Schematics Acquired . | . . . . . . Robots Built . | . . . . . . Authchips . | . . . . . . Time . | . . . . . . Total Robot Build Rating . | . . . . . . Part Schematics Acquired . | . . . . . . Parts Built . | . . . . . . Authchips . | . . . . . . Time . | . . . . . . Total Part Build Rating . | . . . . . . Part Studies Acquired . | . . . . . . Parts Repaired . | . . . . . . Time . | . . . . . . Parts Recycled . | . . . . . . Recycled Matter . | . . . . . . Retrieved Matter . | . . . . . . Retrieved Components . | . . . . . . Parts Scanalyzed . | . . . . . . Part Schematics Acquired . | . . . . . . Parts Damaged . | . . . . . . Bothacking | -11 -10 -9 -9 -9 -9 ------------ Run | Yrd Mat Mat Sto Rec Scr Used RIF Installer . | . . . . . . Robots Hacked . | . . . . . . Non-combat . | . . . . . . Combat . | . . . . . . Robot Hacks Applied . | . . . . . . Relay Couplers Released . | . . . . . . Fabnet Peak Effective % . | . . . . . . Robots Rewired . | . . . . . . Allies Hacked . | . . . . . . Hacks Repelled . | . . . . . . Allies | -11 -10 -9 -9 -9 -9 -------- Run | Yrd Mat Mat Sto Rec Scr Total Allies . | . . . . . . Largest Group . | . . . . . . Highest-Rated Group . | . . . . . . Highest-Rated Ally . | . . . . . . Total Orders . | . . . . . . Ally Attacks . | . . . . . . Total Damage . | . . . . . . Kills . | . . . . . . Allies Corrupted . | . . . . . . Allies Melted . | . . . . . . Intel | -11 -10 -9 -9 -9 -9 ------- Run | Yrd Mat Mat Sto Rec Scr Active Infowar (turns) . | . . . . . . Robot Analysis Total . | . . . . . . Derelict Logs Recovered . | . . . . . . Drone Launches . | . . . . . . Drone Recoveries . | . . . . . . Exploration | -11 -10 -9 -9 -9 -9 ------------- Run | Yrd Mat Mat Sto Rec Scr Turns Passed 1168 | 14 31 69 73 669 312 Spaces Moved 1416 | 27 61 119 84 364 761 Core 928 | 27 61 119 84 364 273 Treads . | . . . . . . Legs . | . . . . . . Wheels . | . . . . . . Hover . | . . . . . . Flight 488 | . . . . . 488 Fastest Speed 35 | 50 50 50 50 50 35 Average Speed 45 | 50 50 50 57 50 40 Slowest Speed 150 | 50 50 50 150 50 50 Overloaded Moves . | . . . . . . Propulsion Burnouts . | . . . . . . Robots Hopped . | . . . . . . Potential Cave-ins . | . . . . . . Cave-ins Triggered . | . . . . . . Exploration Rate (%) 31 | 3 20 13 22 59 72 Regions Visited 5 Branch Regions 3 Pre-discovered Areas 6 | . . . . 6 . Known Exits Taken 1 | . . . . 1 . Unknown Exits Taken 4 | 1 1 1 1 . . Scrap Searched 5 | . . . . . 5 Spaces Dug . | . . . . . . Terrain Destroyed . | . . . . . . Melee . | . . . . . . Projectile . | . . . . . . AOE . | . . . . . . Terrain Rammed . | . . . . . . Walls Destroyed . | . . . . . . Machines Disabled . | . . . . . . Actions | -11 -10 -9 -9 -9 -9 --------- Run | Yrd Mat Mat Sto Rec Scr Total 1929 | 26 60 127 101 850 765 Wait 491 | . . . 8 483 . Move 1411 | 26 60 118 83 363 761 Hop . | . . . . . . Pick Up 4 | . . . . 1 3 Fast Attach 4 | . . . 2 1 1 Attach . | . . . . . . Detach 1 | . . . 1 . . Swap . | . . . . . . Drop 2 | . . . 1 1 . Fire 3 | . . . 3 . . Melee . | . . . . . . Ram 13 | . . 9 3 1 . Kick . | . . . . . . Crush . | . . . . . . Escape Stasis . | . . . . . . Rewire . | . . . . . . Trap . | . . . . . . Miscellaneous . | . . . . . . Route ------- -11/Scrapyard -10/Materials -9/Materials -9/Storage -9/Recycling (discovered 2 exits: [*Fac] / *Scr) -9/Scraptown (discovered 1 exit: [*Fac]) History --------- Turn | Location | Event 4 | -11/Scrapyard | Discovered new exit (range 16) 15 | -11/Scrapyard | Entered Materials 41 | -10/Materials | Discovered new exit (range 10) 46 | -10/Materials | Entered another Materials area 46 | -9/Materials | Evolved 2 slots: Utility x2 111 | -9/Materials | Discovered new exit (range 8) 115 | -9/Materials | Entered Storage 165 | -9/Storage | Core integrity fell below 50% 186 | -9/Storage | Used back door to open Recycling access 186 | -9/Storage | Discovered new exit (range 5) 188 | -9/Storage | Entered Recycling 276 | -9/Recycling | Discovered new exit (range 13) 300 | -9/Recycling | Build established: Mutant 331 | -9/Recycling | Scanned before Scraplab entrance 369 | -9/Recycling | Entered Scraplab 422 | -9/Recycling | Learned location of 2 exits from Materials 558 | -9/Recycling | Learned location of Zion (-7) 612 | -9/Recycling | Learned Materials stockpile data 654 | -9/Recycling | Learned 2 Materials zone layouts 684 | -9/Recycling | Learned Storage trap positions 702 | -9/Recycling | Identified exit to Scraptown 732 | -9/Recycling | Learned Storage emergency access door positions 820 | -9/Recycling | Learned location of 1 exit from Storage 857 | -9/Recycling | Entered Scraptown 914 | -9/Scraptown | Heard Great Nut preacher, LISTEN AND RECITE! 970 | -9/Scraptown | Discovered new exit (range 11) 1035 | -9/Scraptown | Visited UFD Registry 1035 | -9/Scraptown | Registered with UFD as "Monokit" 1049 | -9/Scraptown | Visited Curators Association 1063 | -9/Scraptown | Visited Research Penetration Think Tank 1116 | -9/Scraptown | Visited Observation Area 1121 | -9/Scraptown | Visited Analyses Database 1132 | -9/Scraptown | Visited Cartography Club 1138 | -9/Scraptown | Visited Chapter 10 1152 | -9/Scraptown | Visited Science Guys 1159 | -9/Scraptown | Visited Modified Component R&D 1169 | -9/Scraptown | Self-destructed Last Messages --------------- 01078_ Found 35 Matter. 01079_ Acquired 10 matter. 01081_ Acquired CPS Tube. 01095_ Multiple signs read "I'm always busy, go away." 01116_ LOCAL NARROWCAST: Observation Area. 01121_ LOCAL NARROWCAST: DB 12. 0U-11H(j): Knowledge is power, we'll need these for the inevitable confrontations ahead. 01128_ LOCAL NARROWCAST: Closed for remodeling. 01132_ LOCAL NARROWCAST: Cartography Club. We map, therefore we are. 01137_ RD-BNK: "RECYCLE! MUST RECYCLE NOW!" 01138_ LOCAL NARROWCAST: Chapter 10. If you can't beat 'em, join 'em to beat 'em. 1A-U2S(c): I'm afraid Tooljoint will require some extra recovery time. 01152_ LOCAL NARROWCAST: Science Guys. The heaviest lifting is done with the mind. 01159_ LOCAL NARROWCAST: Modified Component R&D. Map ----- +----------------------------------------------------+ | ????????????????#####" "#?? ""#"" " | | ????????????????#""""" X#?#&" "" ""#"""" | | ????????????????# = = ##?#&" "" ""#"" | | ????????????????# "#??? ?#" | | ????????????????# "#????? ???# | | ????????????????######### ####??????# #????###### | | ?????????###????????##### ########### ########### | | ?????? ????????#"""" """"""""""" """"""""""" | | ??? ????????#" | | ? ????????#" | | ????????#" | | ? ????????#" | | ??# ?????####" | | ??# #????"""" """"""""""""""""""""""" | | ??# #????"""" """"""""""""""""""""""" | | ??# #????"""" ""###### ############# | | ??# #????"""" ""#???? ???????????? | | ??# #????"""" ""#???? ???????????? | | ??# ###?#"""" r""#? "" "???????????? | | ??# ""#"#"""" r""# ""? ????????????? | | ??# """"#""""p ""# " ????????##### | | ??# ""#??####" "" "???????? | | ??# ###?????#" "" "???????? | | ??# #########" ""# " ????????##### | | ??# ""# "" ???????????? | | ??# @ ""#? "" ""??????????? | | ??# ""#??? ??????????? | | ??# ""#???? ???????????? | | ### ""###### ############# | | """"""""""""""""""""""" | | """"""""""""""""""""""" | | | | | | | | #""""#" | | #????#" | | #????#"""""" """"""""""" """""""""" | | ######### ####????####### ########### ########## | | ???????# #???????????? ????#" "#??? | | ?????# #???????????# ????##"" ""##?#" | | ????# #???????????# ?????#&" "!#??# | | ??# #???????????# ????##"" ""##?#" | | #?# #???????????######???#" "#?#" | | #?# #????????????????????##"" ""##?#"" | | #?# #?????????????????????#=" "/#??#"" | | #?# #?????????????????????#"" ""#??### | | #######?# #????????????????????#" """ "#???? | | ????????# #????????????????????#### "&" ####???? | | ????????# #???????????????????????#"###"#??????? | | ????????# #???????????????????????###?###??????? | +----------------------------------------------------+ Best States ------------- Heat Dissipation 28 Energy Generation 5 Energy Capacity 100 Matter Stores 300 Matter Capacity 300 Sight Range 16 Terrain Scan Density 10 Armor Coverage 150 Evasion (%) 63 Item Schematics ----------------- None Robot Schematics ------------------ None Fabricated ------------ Nothing Repaired ---------- Nothing Studied --------- None Alien Tech Used ----------------- None Achievements -------------- None Challenges ------------ None Game ------ Seed RocketThrusterMount Manual? 0 Play Time 00:09:26 Cumulative 28.1 hours Start 2025.11.02 @ 15:58:18 End 2025.11.02 @ 16:07:15 Sessions 1 Manual Loads 0 Difficulty Rogue Special Mode None Game No. 57 Rogue 57 Adventurer 0 Explorer 0 Win Type - Total 2 Types 2/0/0/0/0/0/0/0/0/0 Lore% 38 Gallery% 30 Achievement% 29 Wizard Run 0 Options --------- Layout 1 ASCII 0 Keyboard 1 Movement Arrows Keybinds 0 Fullscreen 1 Font 16/SmallcapsGlow Map View 50x54 Zoom Use 0% Tactical HUD 1 Map Filters NONE Filters NONE Steam 1 RUN: 867eaf38-d163-4624-a128-26cf82046732